[Event "FIDE CB Open 2022"]
[Site "Ceske Budejovice"]
[Date "2022.07.05"]
[Round "5.51"]
[White "Jilek, Marcel"]
[Black "Vojtek, Pavel"]
[Result "0-1"]
[ECO "E90"]
[WhiteElo "1565"]
[BlackElo "1711"]
[Annotator "NA RC COMBH"]
[PlyCount "70"]
[EventDate "2022.07.01"]
[EventType "swiss"]
[EventCountry "CZE"]
[SourceTitle "playchess.com"]
[Source "ChessBase"]
[SourceQuality "1"]
[TimeControl "40/5400+30:1800+30"]

1. d4 {[%emt 0:00:04]} Nf6 {[%emt 0:00:05]} 2. Nf3 {[%emt 0:00:17]} d6 {[%emt 0:00:36]} 3. c4 {[%emt 0:00:08]} g6 {[%emt 0:00:08]} 4. Nc3 {[%emt 0:00:09]} Bg7 {[%emt 0:00:34]} 5. e4 {[%emt 0:00:12]} O-O {[%emt 0:00:11]} 6. Bd3 {[%emt 0:01:18]} e5 {[%emt 0:02:56]} 7. d5 {[%emt 0:00:19]} a5 {[%emt 0:01:00]} 8. Bd2 {[%emt 0:01:13]} Na6 {[%emt 0:00:42]} 9. a3 {[%emt 0:03:44]} Bg4 {[%emt 0:05:22]} 10. h3 {[%emt 0:01:12]} Bd7 {[%emt 0:00:07]} 11. O-O {[%emt 0:00:14]} Qe7 {[%emt 0:13:39]} 12. Rb1 {[%emt 0:11:06]} Nc5 {[%emt 0:14:28]} 13. Bc2 {[%emt 0:00:23]} a4 {[%emt 0:01:18]} 14. Be3 {[%emt 0:03:45]} Qe8 {[%emt 0:01:28]} 15. Ne1 {[%emt 0:04:31]} b6 {[%emt 0:05:43]} 16. f3 {[%emt 0:01:51]} Nh5 {[%emt 0:04:08]} 17. Nd3 {[%emt 0:05:16]} Ng3 {[%emt 0:06:34]} 18. Rf2 {[%emt 0:01:24]} f5 {[%emt 0:01:29]} 19. Nxc5 {[%emt 0:00:36]} bxc5 {[%emt 0:00:15]} 20. b3 {[%emt 0:05:53]} axb3 {[%emt 0:06:01]} 21. Rxb3 {[%emt 0:00:11]} fxe4 {[%emt 0:03:55]} 22. fxe4 {[%emt 0:01:11]} Rb8 {[%emt 0:03:38]} 23. Rxb8 {[%emt 0:09:13]} Qxb8 {[%emt 0:00:03]} 24. Rxf8+ {[%emt 0:00:11]} Qxf8 {[%emt 0:01:29]} 25. a4 {[%emt 0:09:07]} Bh6 {[%emt 0:05:40]} 26. Bf2 {[%emt 0:02:21]} Nh5 {[%emt 0:03:39]} 27. Nb5 {[%emt 0:02:52]} Nf4 {[%emt 0:04:26]} 28. Be1 {[%emt 0:03:47]} Nxh3+ {[%emt 0:07:53]} 29. gxh3 {[%emt 0:01:05]} Be3+ {[%emt 0:00:06]} 30. Kg2 {[%emt 0:01:36]} Bxh3+ {[%emt 0:03:20]} 31. Kxh3 {[%emt 0:01:44]} Qf1+ {[%emt 0:00:26]} 32. Kh2 {[%emt 0:03:10]} Bf4+ {[%emt 0:00:34]} 33. Bg3 {[%emt 0:00:07]} Qf2+ {[%emt 0:00:05]} 34. Kh1 {[%emt 0:00:12]} Qxg3 {[%emt 0:02:29]} 35. Qe2 {[%emt 0:01:03]} Qh3+ {[%emt 0:00:07]} 0-1

[Event "FIDE CB Open 2022"]
[Site "Ceske Budejovice"]
[Date "2022.07.05"]
[Round "5.52"]
[White "Rybackova, Lucie"]
[Black "Almaini, Aishah Sarhan"]
[Result "0-1"]
[ECO "E68"]
[WhiteElo "1696"]
[BlackElo "1615"]
[Annotator "NA COMBH"]
[PlyCount "182"]
[EventDate "2022.07.01"]
[EventType "swiss"]
[EventCountry "CZE"]
[SourceTitle "playchess.com"]
[Source "ChessBase"]
[SourceQuality "1"]
[TimeControl "40/5400+30:1800+30"]

1. Nf3 {[%emt 0:00:15]} Nf6 {[%emt 0:01:30]} 2. g3 {[%emt 0:00:41]} g6 {[%emt 0:00:33]} 3. Bg2 {[%emt 0:00:38]} Bg7 {[%emt 0:00:02]} 4. O-O {[%emt 0:00:27]} O-O {[%emt 0:00:03]} 5. d4 {[%emt 0:00:40]} d6 {[%emt 0:03:33]} 6. c4 {[%emt 0:00:27]} Nbd7 {[%emt 0:02:10]} 7. Nc3 {[%emt 0:01:15]} c6 {[%emt 0:00:17]} 8. Qc2 {[%emt 0:01:20]} e5 {[%emt 0:03:53]} 9. Rd1 {[%emt 0:01:20]} Qc7 {[%emt 0:02:42]} 10. e4 {[%emt 0:03:04]} Re8 {[%emt 0:05:05]} 11. h3 {[%emt 0:02:59]} h6 {[%emt 0:09:28]} 12. Be3 {[%emt 0:03:56]} Nh7 {[%emt 0:10:30]} 13. Qd2 {[%emt 0:12:56]} g5 {[%emt 0:02:57]} 14. h4 {[%emt 0:12:27]} f6 {[%emt 0:03:52]} 15. hxg5 {[%emt 0:04:39]} hxg5 {[%emt 0:05:00]} 16. Rac1 {[%emt 0:03:50]} Nb6 {[%emt 0:05:22]} 17. b3 {[%emt 0:05:22]} Bg4 {[%emt 0:04:42]} 18. c5 {[%emt 0:09:20]} exd4 {[%emt 0:04:37]} 19. Bxd4 {[%emt 0:05:28]} dxc5 {[%emt 0:00:16]} 20. Bxc5 {[%emt 0:01:30]} Rad8 {[%emt 0:06:15]} 21. Qc2 {[%emt 0:02:31]} Bf8 {[%emt 0:04:14]} 22. Bxf8 {[%emt 0:03:35]} Nxf8 {[%emt 0:00:07]} 23. Nd5 {[%emt 0:02:15]} Qf7 {[%emt 0:02:45]} 24. Nxb6 {[%emt 0:02:27]} axb6 {[%emt 0:00:01]} 25. Rd3 {[%emt 0:03:15]} Rxd3 {[%emt 0:04:37]} 26. Qxd3 {[%emt 0:00:53]} Ne6 {[%emt 0:00:41]} 27. Qe3 {[%emt 0:01:06]} Nc5 {[%emt 0:02:45]} 28. Nh2 {[%emt 0:02:07]} Bh5 {[%emt 0:01:43]} 29. b4 {[%emt 0:00:53]} Nd7 {[%emt 0:00:01]} 30. Bf1 {[%emt 0:01:40]} Qh7 {[%emt 0:01:44]} 31. Bc4+ {[%emt 0:00:20]} Bf7 {[%emt 0:00:21]} 32. Bxf7+ {[%emt 0:00:08]} Kxf7 {[%emt 0:02:13]} 33. f3 {[%emt 0:02:40]} Rh8 {[%emt 0:01:16]} 34. Rc2 {[%emt 0:02:05]} Qh3 {[%emt 0:03:10]} 35. Rg2 {[%emt 0:01:28]} Qe6 {[%emt 0:05:14]} 36. Qd4 {[%emt 0:02:56]} c5 {[%emt 0:01:07]} 37. Qc3 {[%emt 0:01:20]} Ra8 {[%emt 0:00:36]} 38. a3 {[%emt 0:00:35]} c4 {[%emt 0:00:50]} 39. Ng4 {[%emt 0:01:24]} b5 {[%emt 0:01:23]} 40. Rh2 {[%emt 0:00:30]} Rf8 {[%emt 0:02:07]} 41. Rh7+ {[%emt 0:32:04]} Ke8 {[%emt 0:01:59]} 42. Qd4 {[%emt 0:00:00]} Rf7 {[%emt 0:02:05]} 43. Rh8+ {[%emt 0:00:00]} Rf8 {[%emt 0:01:34]} 44. Rh7 {[%emt 0:00:00]} Rf7 {[%emt 0:00:23]} 45. Rh6 {[%emt 0:00:00]} Ke7 {[%emt 0:03:05]} 46. Ne3 {[%emt 0:00:00]} Qe5 {[%emt 0:07:22]} 47. Nf5+ {[%emt 0:00:00]} Kd8 {[%emt 0:01:02]} 48. Rh8+ {[%emt 0:00:00]} Kc7 {[%emt 0:00:14]} 49. Qd1 {[%emt 0:00:00]} Qe6 {[%emt 0:03:38]} 50. Kg2 {[%emt 0:02:40]} Rf8 {[%emt 0:01:45]} 51. Rh7 {[%emt 0:00:41]} Rf7 {[%emt 0:00:01]} 52. Rxf7 {[%emt 0:00:24]} Qxf7 {[%emt 0:00:27]} 53. Qd6+ {[%emt 0:00:13]} Kd8 {[%emt 0:00:52]} 54. Nd4 {[%emt 0:01:07]} c3 {[%emt 0:09:08]} 55. Ne6+ {[%emt 0:02:46]} Qxe6 {[%emt 0:00:38]} 56. Qxe6 {[%emt 0:00:15]} c2 {[%emt 0:00:05]} 57. Qd5 {[%emt 0:01:27]} c1=Q {[%emt 0:00:14]} 58. Qxb5 {[%emt 0:00:10]} Qxa3 {[%emt 0:01:36]} 59. Qxb7 {[%emt 0:00:12]} Qa2+ {[%emt 0:01:06]} 60. Kf1 {[%emt 0:00:25]} Qc4+ {[%emt 0:01:08]} 61. Kf2 {[%emt 0:00:08]} Qc2+ {[%emt 0:00:14]} 62. Kf1 {[%emt 0:00:06]} Qd1+ {[%emt 0:00:21]} 63. Kf2 {[%emt 0:00:10]} Qd2+ {[%emt 0:00:14]} 64. Kf1 {[%emt 0:00:27]} Qe3 {[%emt 0:00:43]} 65. Kg2 {[%emt 0:01:33]} Qe2+ {[%emt 0:00:09]} 66. Kh3 {[%emt 0:00:19]} Qxf3 {[%emt 0:00:22]} 67. Qa8+ {[%emt 0:00:50]} Ke7 {[%emt 0:00:01]} 68. Qd5 {[%emt 0:01:01]} Qh5+ {[%emt 0:01:19]} 69. Kg2 {[%emt 0:00:12]} Qe2+ {[%emt 0:01:43]} 70. Kg1 {[%emt 0:00:28]} Qf3 {[%emt 0:00:54]} 71. b5 {[%emt 0:00:44]} Qxg3+ {[%emt 0:00:06]} 72. Kf1 {[%emt 0:00:06]} Qf3+ {[%emt 0:00:15]} 73. Kg1 {[%emt 0:00:14]} g4 {[%emt 0:00:17]} 74. Qd4 {[%emt 0:00:40]} g3 {[%emt 0:01:23]} 75. Qb4+ {[%emt 0:00:22]} Kf7 {[%emt 0:00:39]} 76. Qc4+ {[%emt 0:00:14]} Kg7 {[%emt 0:00:39]} 77. Qd4 {[%emt 0:00:20]} Kg6 {[%emt 0:00:35]} 78. b6 {[%emt 0:00:35]} g2 {[%emt 0:00:40]} 79. Qf2 {[%emt 0:01:36]} Qxf2+ {[%emt 0:00:10]} 80. Kxf2 {[%emt 0:00:04]} Nxb6 {[%emt 0:00:03]} 81. Kxg2 {[%emt 0:00:07]} Nc4 {[%emt 0:00:13]} 82. Kf2 {[%emt 0:00:22]} Kg5 {[%emt 0:00:04]} 83. Kf3 {[%emt 0:00:13]} Ne5+ {[%emt 0:00:10]} 84. Kg3 {[%emt 0:00:18]} Nd3 {[%emt 0:00:18]} 85. Kf3 {[%emt 0:00:12]} Nc5 {[%emt 0:00:03]} 86. Ke3 {[%emt 0:00:09]} Kg4 {[%emt 0:00:38]} 87. Kd4 {[%emt 0:00:19]} Kf4 {[%emt 0:00:11]} 88. Kxc5 {[%emt 0:00:12]} Kxe4 {[%emt 0:00:03]} 89. Kc4 {[%emt 0:00:20]} f5 {[%emt 0:00:08]} 90. Kc3 {[%emt 0:00:03]} Ke3 {[%emt 0:00:02]} 91. Kc2 {[%emt 0:00:13]} Ke2 {[%emt 0:00:04]} 0-1

[Event "FIDE CB Open 2022"]
[Site "Ceske Budejovice"]
[Date "2022.07.05"]
[Round "5.53"]
[White "Rybacek, Martin"]
[Black "Smola, David"]
[Result "0-1"]
[ECO "E65"]
[WhiteElo "1650"]
[BlackElo "1609"]
[Annotator "NA RC COMBH"]
[PlyCount "92"]
[EventDate "2022.07.01"]
[EventType "swiss"]
[EventCountry "CZE"]
[SourceTitle "playchess.com"]
[Source "ChessBase"]
[SourceQuality "1"]
[TimeControl "40/5400+30:1800+30"]

1. Nf3 {[%emt 0:00:14]} Nf6 {[%emt 0:01:36]} 2. g3 {[%emt 0:00:48]} g6 {[%emt 0:02:32]} 3. Bg2 {[%emt 0:01:05]} Bg7 {[%emt 0:01:26]} 4. O-O {[%emt 0:01:12]} O-O {[%emt 0:01:10]} 5. c4 {[%emt 0:01:36]} d6 {[%emt 0:02:54]} 6. d4 {[%emt 0:01:45]} c5 {[%emt 0:02:21]} 7. dxc5 {[%emt 0:03:59]} dxc5 {[%emt 0:01:19]} 8. Nc3 {[%emt 0:02:09]} Nc6 {[%emt 0:02:33]} 9. Bf4 {[%emt 0:04:31]} Bd7 {[%emt 0:14:48]} 10. Qc1 {[%emt 0:12:10]} Qb6 {[%emt 0:04:45]} 11. Nb5 {[%emt 0:07:15]} Na5 {[%emt 0:18:36]} 12. Bc7 {[%emt 0:05:25]} Qa6 {[%emt 0:01:11]} 13. Bxa5 {[%emt 0:13:57]} Qxa5 {[%emt 0:01:45]} 14. Nc3 {[%emt 0:02:32]} Bc6 {[%emt 0:01:11]} 15. Rd1 {[%emt 0:01:09]} Rfd8 {[%emt 0:01:00]} 16. Qe3 {[%emt 0:01:03]} Kf8 {[%emt 0:06:17]} 17. Ne5 {[%emt 0:03:23]} Bxg2 {[%emt 0:01:55]} 18. Kxg2 {[%emt 0:00:12]} a6 {[%emt 0:03:34]} 19. Nd3 {[%emt 0:02:01]} Rac8 {[%emt 0:01:50]} 20. f3 {[%emt 0:03:02]} Nd7 {[%emt 0:03:30]} 21. Nd5 {[%emt 0:04:44]} e6 {[%emt 0:01:32]} 22. N5f4 {[%emt 0:01:08]} Bd4 {[%emt 0:01:05]} 23. Qe4 {[%emt 0:04:29]} Nf6 {[%emt 0:07:43]} 24. Qxb7 {[%emt 0:00:00]} Rb8 {[%emt 0:01:12]} 25. Qc6 {[%emt 0:01:20]} Ke7 {[%emt 0:02:17]} 26. Nc1 {[%emt 0:12:12]} Rxb2 {[%emt 0:03:05]} 27. Nb3 {[%emt 0:01:03]} Rxb3 {[%emt 0:01:10]} 28. axb3 {[%emt 0:00:14]} Bxa1 {[%emt 0:00:26]} 29. Qb7+ {[%emt 0:00:24]} Rd7 {[%emt 0:00:44]} 30. Rxd7+ {[%emt 0:00:25]} Nxd7 {[%emt 0:01:47]} 31. Nd3 {[%emt 0:03:50]} Qb6 {[%emt 0:01:00]} 32. Qc8 {[%emt 0:00:30]} Bd4 {[%emt 0:00:30]} 33. Nf4 {[%emt 0:00:30]} a5 {[%emt 0:00:30]} 34. Qg8 {[%emt 0:01:33]} Nf6 {[%emt 0:00:57]} 35. Qc8 {[%emt 0:00:46]} Ne8 {[%emt 0:00:58]} 36. Nd3 {[%emt 0:01:04]} Qxb3 {[%emt 0:01:49]} 37. Nxc5 {[%emt 0:00:08]} Qxc4 {[%emt 0:00:39]} 38. Qb7+ {[%emt 0:00:38]} Kf8 {[%emt 0:00:51]} 39. Nd7+ {[%emt 0:00:30]} Kg7 {[%emt 0:00:55]} 40. Qe4 {[%emt 0:00:23]} Qd5 {[%emt 0:00:42]} 41. Qd3 {[%emt 0:31:25]} Qxd7 {[%emt 0:32:30]} 42. e3 {[%emt 0:00:14]} e5 {[%emt 0:01:03]} 43. f4 {[%emt 0:01:03]} Qc6+ {[%emt 0:01:02]} 44. Kh3 {[%emt 0:00:11]} Bb2 {[%emt 0:00:52]} 45. e4 {[%emt 0:00:35]} exf4 {[%emt 0:00:53]} 46. gxf4 {[%emt 0:00:12]} Qc3 {[%emt 0:00:05]} 0-1

[Event "FIDE CB Open 2022"]
[Site "Ceske Budejovice"]
[Date "2022.07.05"]
[Round "5.54"]
[White "Kukacka, Ladislav"]
[Black "Pisar, Tomas"]
[Result "1-0"]
[ECO "A15"]
[WhiteElo "1555"]
[BlackElo "1640"]
[Annotator "NA RC COMBH"]
[PlyCount "41"]
[EventDate "2022.07.01"]
[EventType "swiss"]
[EventCountry "CZE"]
[SourceTitle "playchess.com"]
[Source "ChessBase"]
[SourceQuality "1"]
[TimeControl "40/5400+30:1800+30"]

1. Nf3 {[%emt 0:00:31]} Nf6 {[%emt 0:00:07]} 2. c4 {[%emt 0:00:40]} g6 {[%emt 0:00:04]} 3. b4 {[%emt 0:00:47]} Bg7 {[%emt 0:00:15]} 4. Bb2 {[%emt 0:00:26]} O-O {[%emt 0:00:07]} 5. g3 {[%emt 0:00:53]} c6 {[%emt 0:03:05]} 6. Bg2 {[%emt 0:00:45]} d5 {[%emt 0:00:03]} 7. cxd5 {[%emt 0:01:11]} cxd5 {[%emt 0:00:03]} 8. O-O {[%emt 0:01:00]} a6 {[%emt 0:13:04]} 9. d3 {[%emt 0:01:29]} Nc6 {[%emt 0:00:33]} 10. a3 {[%emt 0:01:01]} Re8 {[%emt 0:01:39]} 11. Nbd2 {[%emt 0:03:48]} e5 {[%emt 0:10:43]} 12. Qb3 {[%emt 0:03:09]} e4 {[%emt 0:13:19]} 13. dxe4 {[%emt 0:01:11]} Nxe4 {[%emt 0:00:18]} 14. Bxg7 {[%emt 0:04:36]} Kxg7 {[%emt 0:00:18]} 15. Rad1 {[%emt 0:02:31]} Qf6 {[%emt 0:10:58]} 16. Nxe4 {[%emt 0:06:20]} dxe4 {[%emt 0:00:05]} 17. Nd2 {[%emt 0:01:11]} Nd4 {[%emt 0:08:24]} 18. Qe3 {[%emt 0:03:19]} Bg4 {[%emt 0:01:41]} 19. Nxe4 {[%emt 0:05:09]} Nxe2+ {[%emt 0:00:15]} 20. Kh1 {[%emt 0:00:24]} Rxe4 {[%emt 0:12:08]} 21. Qxe4 {[%emt 0:03:53]} 1-0

[Event "FIDE CB Open 2022"]
[Site "Ceske Budejovice"]
[Date "2022.07.05"]
[Round "5.55"]
[White "Huemer, Gerald"]
[Black "Jodas, Daniel"]
[Result "1-0"]
[ECO "A48"]
[WhiteElo "1627"]
[BlackElo "1614"]
[Annotator "NA RC COMBH"]
[PlyCount "79"]
[EventDate "2022.07.01"]
[EventType "swiss"]
[EventCountry "CZE"]
[SourceTitle "playchess.com"]
[Source "ChessBase"]
[SourceQuality "1"]
[TimeControl "40/5400+30:1800+30"]

1. d4 {[%emt 0:00:08]} Nf6 {[%emt 0:00:09]} 2. Bf4 {[%emt 0:00:07]} g6 {[%emt 0:00:25]} 3. h3 {[%emt 0:00:19]} Bg7 {[%emt 0:00:22]} 4. e3 {[%emt 0:00:02]} O-O {[%emt 0:00:07]} 5. Nd2 {[%emt 0:00:06]} d6 {[%emt 0:00:31]} 6. Ngf3 {[%emt 0:00:19]} Nbd7 {[%emt 0:01:53]} 7. Bh2 {[%emt 0:00:22]} Re8 {[%emt 0:03:43]} 8. Be2 {[%emt 0:00:49]} e5 {[%emt 0:03:57]} 9. dxe5 {[%emt 0:01:04]} dxe5 {[%emt 0:01:05]} 10. c3 {[%emt 0:03:54]} e4 {[%emt 0:06:30]} 11. Nd4 {[%emt 0:01:37]} Ne5 {[%emt 0:02:20]} 12. Nc4 {[%emt 0:03:08]} Nxc4 {[%emt 0:07:08]} 13. Bxc4 {[%emt 0:02:42]} a6 {[%emt 0:00:47]} 14. Qb3 {[%emt 0:05:37]} Qe7 {[%emt 0:03:59]} 15. a4 {[%emt 0:01:17]} c5 {[%emt 0:03:51]} 16. Ne2 {[%emt 0:00:48]} g5 {[%emt 0:13:14]} 17. Rd1 {[%emt 0:01:02]} Nd7 {[%emt 0:05:50]} 18. Bd6 {[%emt 0:03:03]} Qf6 {[%emt 0:00:20]} 19. Ng3 {[%emt 0:00:17]} Bf8 {[%emt 0:04:10]} 20. Bxf8 {[%emt 0:06:45]} Kxf8 {[%emt 0:00:09]} 21. Bd5 {[%emt 0:00:34]} Qg6 {[%emt 0:07:33]} 22. Qc4 {[%emt 0:06:04]} Nf6 {[%emt 0:07:03]} 23. Qxc5+ {[%emt 0:05:34]} Kg8 {[%emt 0:00:35]} 24. O-O {[%emt 0:01:02]} Nxd5 {[%emt 0:02:31]} 25. Rxd5 {[%emt 0:01:04]} h6 {[%emt 0:00:28]} 26. Rfd1 {[%emt 0:03:40]} Be6 {[%emt 0:01:18]} 27. Rd6 {[%emt 0:04:40]} h5 {[%emt 0:05:41]} 28. R1d4 {[%emt 0:13:25]} h4 {[%emt 0:07:48]} 29. Nxe4 {[%emt 0:02:47]} f5 {[%emt 0:00:08]} 30. Nd2 {[%emt 0:01:45]} g4 {[%emt 0:01:07]} 31. hxg4 {[%emt 0:01:18]} fxg4 {[%emt 0:00:29]} 32. Ne4 {[%emt 0:00:41]} g3 {[%emt 0:04:43]} 33. fxg3 {[%emt 0:01:29]} hxg3 {[%emt 0:00:49]} 34. Qg5 {[%emt 0:00:48]} Qxg5 {[%emt 0:00:06]} 35. Nxg5 {[%emt 0:00:09]} Bf5 {[%emt 0:01:06]} 36. Rf6 {[%emt 0:04:39]} Bc2 {[%emt 0:01:07]} 37. Rg4 {[%emt 0:02:10]} Rxe3 {[%emt 0:04:45]} 38. Ne4+ {[%emt 0:02:06]} Kh7 {[%emt 0:00:22]} 39. Nxg3 {[%emt 0:02:49]} Rg8 {[%emt 0:01:18]} 40. Rf7+ {[%emt 0:01:22]} 1-0

[Event "FIDE CB Open 2022"]
[Site "Ceske Budejovice"]
[Date "2022.07.06"]
[Round "6.1"]
[White "Toman, Ondrej"]
[Black "Roshka, Yevgeniy"]
[Result "1/2-1/2"]
[ECO "A45"]
[WhiteElo "2276"]
[BlackElo "2497"]
[Annotator "TA"]
[PlyCount "163"]
[EventDate "2022.07.01"]
[EventType "swiss"]
[EventCountry "CZE"]
[SourceTitle "playchess.com"]
[Source "ChessBase"]
[SourceQuality "1"]
[TimeControl "40/5400+30:1800+30"]

{[%evp 9,163,14,21,-8,9,0,7,7,0,-1,9,-5,18,11,29,13,18,31,32,0,35,25,24,14,16,17,22,12,18,0,21,21,22,23,30,3,69,0,0,0,0,0,25,21,37,28,23,22,28,4,11,6,17,0,0,0,0,0,0,0,0,0,0,0,0,0,0,0,0,0,0,-10,-10,-10,-10,-10,-10,-10,-10,-10,-10,-10,-10,-10,-10,-10,-10,-10,0,-10,0,-10,-10,-10,-10,-25,-25,-27,0,0,0,0,0,0,0,0,0,0,0,0,0,0,0,0,0,-5,0,-20,0,-20,-21,-21,-21,-24,-24,-25,-28,-28,-28,-30,-28,-28,0,-28,-28,-28,-28,-28,-28,-28,-28,-28,-28,-28,-28,-28,-28,-28,-28,-28,-28,-28,0,-28,0,-28]} 1. d4 {[%emt 0:00:05]} Nf6 {[%emt 0:00:10]} 2. Bg5 {[%emt 0:00:07]} e6 {[%emt 0:00:25]} 3. e4 {[%emt 0:00:04]} h6 {[%emt 0:00:03]} 4. Bxf6 {[%emt 0:00:06]} Qxf6 {[%emt 0:00:02]} 5. c3 {[%emt 0:00:05]} d6 {[%emt 0:00:14]} 6. Bc4 {[%emt 0:00:05] A45: Trompowsky Attack.} g6 {[%emt 0:00:32]} 7. Ne2 {[%emt 0:00:06]} Bg7 {[%emt 0:00:07]} 8. O-O {[%emt 0:00:05]} O-O {[%emt 0:01:03]} 9. f4 {[%emt 0:00:04]} Qe7 {[%emt 0:01:10]} 10. Nd2 {[%emt 0:00:06][%cal Of4f5]} e5 {[%emt 0:06:17] [#]} 11. a4 $146 {[%emt 0:00:03]} ({Predecessor:} 11. f5 Kh7 12. fxg6+ fxg6 13. Rxf8 Qxf8 14. Qb3 Nd7 15. Rf1 Qe8 16. Nf3 Qe7 17. Ng3 {½-½ (25) Dragun,K (2585)-Gabuzyan,H (2620) Ledyard 2019}) 11... Nd7 {[%emt 0:00:32]} 12. Qc2 {[%emt 0:01:51]} Nf6 {[%emt 0:08:00]} 13. Rae1 {[%emt 0:05:21]} Bg4 {[%emt 0:04:00]} 14. Ba2 {[%emt 0:10:02]} Nh5 {[%emt 0:07:03]} 15. dxe5 {[%emt 0:04:02]} dxe5 {[%emt 0:00:56]} 16. f5 {[%emt 0:00:26] next fxg6 is good for White.} Bxe2 {[%emt 0:02:43]} 17. Rxe2 {[%emt 0:00:51] [#] aiming for fxg6.} Kh7 {[%emt 0:00:03]} 18. g3 {[%emt 0:04:21]} Rad8 {[%emt 0:04:59]} 19. Nf3 {[%emt 0:05:30]} Nf6 {[%emt 0:03:32]} 20. h3 {[%emt 0:07:20]} Nh5 {[%emt 0:07:03]} 21. Kg2 {[%emt 0:03:57]} Bf6 {[%emt 0:00:20] [#] Strongly threatening ...gxf5.} 22. Nh2 {[%emt 0:10:37]} (22. fxg6+ {feels hotter.} fxg6 23. Rd2 Rxd2+ 24. Qxd2 Bg7 25. Qd3) 22... Rd6 {[%emt 0:05:02]} (22... Bh4 $11 23. gxh4 Qxh4) 23. Rd1 {[%emt 0:07:28]} (23. Ng4 $14) 23... Rxd1 $11 {[%emt 0:17:49]} 24. fxg6+ {[%emt 0:03:33]} fxg6 {[%emt 0:01:07]} 25. Qxd1 {[%emt 0:00:01]} Bg7 {[%emt 0:04:07]} (25... Bh4 $5 {[%cal Rh4g3]} 26. Rd2 (26. gxh4 Qxh4 27. Rd2 Nf4+ 28. Kh1 Nxh3 $15) 26... Qg5 27. Rd7+ Kh8 $11) 26. Nf3 {[%emt 0:02:31]} Nf6 {[%emt 0:08:32][%cal Bh5f6,Bf6e8,Be8d6][%mdl 32]} 27. Bb1 {[%emt 0:05:02]} (27. Qd3 {keeps more tension.} Ne8 28. Qd5 Qd6 29. Rd2) 27... Ne8 {[%emt 0:05:15]} 28. Rf2 {[%emt 0:02:13]} Nd6 {[%emt 0:01:15]} 29. Bd3 {[%emt 0:04:22]} Qd7 {[%emt 0:02:54][%cal Od6e4]} 30. Qb3 {[%emt 0:08:48]} Qc6 {[%emt 0:01:46]} 31. Nd2 {[%emt 0:08:25]} (31. Re2 {looks sharper.} Qd7 32. Re1 b6 33. Rf1) 31... Rxf2+ {[%emt 0:01:02]} 32. Kxf2 {[%emt 0:00:01]} Qc5+ {[%emt 0:00:58]} 33. Kg2 $1 {[%emt 0:00:05]} Qe3 {[%emt 0:01:46]} 34. Qc2 {[%emt 0:00:02]} h5 {[%emt 0:02:41]} 35. Nf3 {[%emt 0:03:38]} Bf6 {[%emt 0:00:26]} 36. h4 {[%emt 0:02:24]} Kg7 {[%emt 0:00:56]} 37. Qd2 {[%emt 0:00:40]} Qxd2+ {[%emt 0:00:50]} 38. Nxd2 {[%emt 0:00:01][%mdl 4096] Endgame KBN-KBN} g5 {[%emt 0:00:01]} 39. hxg5 {[%emt 0:03:52]} Bxg5 {[%emt 0:00:01]} 40. Nc4 {[%emt 0:01:18]} Nxc4 {[%emt 0:00:15]} 41. Bxc4 {[%emt 0:30:01] KB-KB} Bc1 {[%emt 0:30:09]} 42. b3 {[%emt 0:00:08]} Bd2 {[%emt 0:00:36]} 43. Be2 {[%emt 0:01:08]} Kg6 {[%emt 0:00:18]} 44. c4 {[%emt 0:00:11]} Kg5 {[%emt 0:00:07]} 45. Kf3 {[%emt 0:00:24]} Be1 {[%emt 0:00:20]} 46. Bf1 {[%emt 0:00:28]} Kf6 {[%emt 0:00:21]} 47. Be2 {[%emt 0:00:53]} Kg6 {[%emt 0:02:38]} 48. Bf1 {[%emt 0:00:24]} Kf6 {[%emt 0:01:48]} 49. Be2 {[%emt 0:00:38]} Ke6 {[%emt 0:00:06]} 50. Ke3 {[%emt 0:00:07]} Kd6 {[%emt 0:00:24]} 51. Bxh5 {[%emt 0:00:31]} Bxg3 {[%emt 0:00:12]} 52. b4 {[%emt 0:00:00]} Be1 {[%emt 0:00:00]} 53. c5+ {[%emt 0:00:00]} Kd7 {[%emt 0:00:00]} 54. b5 {[%emt 0:00:00]} Bb4 {[%emt 0:00:00]} 55. Bg4+ {[%emt 0:00:00]} Ke7 {[%emt 0:00:00]} 56. Kd3 $1 {[%emt 0:00:00]} Bxc5 {[%emt 0:00:00]} 57. Bc8 {[%emt 0:00:00]} b6 {[%emt 0:00:00]} 58. Bb7 {[%emt 0:00:00]} Kd6 {[%emt 0:00:00]} 59. Kc4 {[%emt 0:00:00]} Bd4 {[%emt 0:00:00]} 60. Bd5 {[%emt 0:00:00]} Ke7 {[%emt 0:00:00]} 61. Bc6 {[%emt 0:00:00]} Ke6 {[%emt 0:00:00]} 62. Bb7 {[%emt 0:00:00]} Kd6 {[%emt 0:00:00]} 63. Bd5 {[%emt 0:00:00]} Bc5 {[%emt 0:00:00]} 64. Kd3 {[%emt 0:00:00]} Bb4 {[%emt 0:00:00]} 65. Kc4 {[%emt 0:00:00]} Ba3 {[%emt 0:00:00]} 66. Kb3 {[%emt 0:00:00]} Bc1 {[%emt 0:00:00]} 67. Kb4 {[%emt 0:00:00]} Bd2+ {[%emt 0:00:00]} 68. Kc4 {[%emt 0:00:00]} Be1 {[%emt 0:00:00]} 69. Bc6 {[%emt 0:00:00]} a5 {[%emt 0:00:00]} 70. Bd5 {[%emt 0:00:00]} Ke7 {[%emt 0:00:00]} 71. Kd3 {[%emt 0:00:00]} Bb4 {[%emt 0:00:00]} 72. Kc4 {[%emt 0:00:00]} Kf6 {[%emt 0:00:00]} 73. Kd3 {[%emt 0:00:00]} Kg5 {[%emt 0:00:00]} 74. Bb3 {[%emt 0:00:00]} Kf4 {[%emt 0:00:00]} 75. Bd5 {[%emt 0:00:00]} Kf3 {[%emt 0:00:00]} 76. Bc4 {[%emt 0:00:00]} Kf2 {[%emt 0:00:00]} 77. Bd5 {[%emt 0:00:00]} Ke1 {[%emt 0:00:00]} 78. Bb3 {[%emt 0:00:00]} Bc5 {[%emt 0:00:00]} 79. Bc2 {[%emt 0:00:00]} Bd4 {[%emt 0:00:00]} 80. Bb3 {[%emt 0:00:00]} Bc5 {[%emt 0:00:00]} 81. Bc2 {[%emt 0:00:00]} Bd4 {[%emt 0:00:00]} 82. Bb3 {[%emt 0:00:00] Weighted Error Value: White=0.06 (flawless) /Black=0.07 (flawless)} 1/2-1/2